fUST/lending_fUST_20240729
["ID","MTS","AMOUNT","RATE_DAILY","PERIOD"]
[333575333,1722251471860,-1082.84228269,0.00018356,5]
[333575334,1722251471870,-500.0,0.00018356,2]
[333575335,1722251471879,-500.0,0.00018356,2]
[333575336,1722251471889,-506.74,0.00018356,2]
[333575337,1722251471899,-500.0,0.00018356,2]
[333575338,1722251471908,-574.02,0.00018356,2]
[333575339,1722251471917,-500.0,0.00018356,2]
[333575340,1722251471927,-507.23,0.00018356,2]
[333575341,1722251471936,-716.0,0.00018356,2]
[333575342,1722251471946,-359.62,0.00018356,2]
[333575343,1722251471956,-2198.4,0.00018356,2]
[333575344,1722251471965,-660.09,0.00018356,2]
[333575345,1722251471975,-500.0,0.00018356,2]
[333575346,1722251471984,-500.0,0.00018356,2]
[333575347,1722251471994,-826.2,0.00018356,2]
[333575348,1722251472004,-500.0,0.00018356,2]
[333575349,1722251472013,-502.53,0.00018356,2]
[333575350,1722251472023,-559.07,0.00018356,2]
[333575351,1722251472032,-506.76,0.00018356,2]
[333575352,1722251472042,-587.87,0.00018356,2]
[333575353,1722251472052,-500.0,0.00018356,2]
[333575354,1722251472062,-500.0,0.00018356,2]
[333575355,1722251472071,-2414.85,0.00018356,2]
[333575356,1722251472081,-811.03,0.00018356,2]
[333575357,1722251472090,-3032.91,0.00018356,2]
[333575358,1722251472100,-500.0,0.00018356,2]
[333575359,1722251472109,-5771.94,0.00018356,2]
[333575360,1722251472118,-1268.33,0.00018356,2]
[333575361,1722251472128,-1093.32,0.00018356,2]
[333575362,1722251472137,-1230.39317325,0.00018365,2]
[333575363,1722251472146,-200.483385,0.00018428,2]
[333575364,1722251472155,-195.868444,0.00018428,2]
[333575365,1722251472164,-200.483385,0.00018428,2]
[333575366,1722251472173,-195.868444,0.00018428,2]
[333575367,1722251472182,-3202.261,0.00018479,2]
[333575368,1722251472191,-4180.04028286,0.00018557,2]
[333575369,1722251472204,-500.0,0.00018629,2]
[333575370,1722251472213,-865.7,0.00018629,2]
[333575371,1722251472226,-500.0,0.0001863,2]
[333575372,1722251472236,-465.17343926,0.0001863,2]
[333575373,1722251472246,-506.74,0.0001863,2]
[333575374,1722251472255,-500.0,0.0001863,2]
[333575375,1722251472265,-405.76348308,0.0001863,2]
[333575376,1722251472274,-507.23,0.0001863,2]
[333575377,1722251472284,-716.0,0.0001863,2]
[333575378,1722251472293,-2198.4,0.0001863,2]
[333575379,1722251472304,-660.09,0.0001863,2]
[333575380,1722251472315,-500.0,0.0001863,2]
[333575381,1722251472324,-500.0,0.0001863,2]
[333575382,1722251472334,-826.2,0.0001863,2]
[333575383,1722251472344,-500.0,0.0001863,2]
[333575384,1722251472354,-502.53,0.0001863,2]
[333575385,1722251472363,-559.07,0.0001863,2]
[333575386,1722251472373,-506.76,0.0001863,2]
[333575387,1722251472382,-500.0,0.0001863,2]
[333575388,1722251472391,-500.0,0.0001863,2]
[333575389,1722251472402,-2414.85,0.0001863,2]
[333575390,1722251472411,-811.03,0.0001863,2]
[333575391,1722251472421,-3032.91,0.0001863,2]
[333575392,1722251472430,-500.0,0.0001863,2]
[333575393,1722251472440,-5771.94,0.0001863,2]
[333575394,1722251472450,-1093.32,0.0001863,2]
[333575395,1722251472459,-1268.33,0.0001863,2]
[333575396,1722251472468,-200.483385,0.0001865,2]
[333575397,1722251472477,-195.868444,0.0001865,2]
[333575398,1722251472486,-200.483385,0.0001865,2]
[333575399,1722251472496,-195.868444,0.0001865,2]
[333575400,1722251472505,-167.78703,0.0001865,2]
[333575401,1722251472515,-167.069488,0.0001865,2]
[333575402,1722251472524,-168.810698,0.0001865,2]
[333575403,1722251472534,-520.83,0.00018678,2]
[333575404,1722251472544,-520.83,0.00018678,2]
[333575405,1722251472556,-500.0,0.00018678,2]
[333575406,1722251472566,-500.0,0.00018678,2]
[333575407,1722251472576,-151.0,0.00018772,2]
[333575408,1722251472585,-151.355207,0.00018772,2]
[333575409,1722251472597,-35001.9180202,0.00018773,2]
[333575410,1722251472608,-500.0,0.00018904,2]
[333575411,1722251472617,-506.74,0.00018904,2]
[333575412,1722251472627,-500.0,0.00018904,2]
[333575413,1722251472637,-151.0,0.00018904,2]
[333575414,1722251472709,-507.23,0.00018904,2]
[333575415,1722251472719,-151.0,0.00018904,2]
[333575416,1722251472729,-716.0,0.00018904,2]
[333575417,1722251472738,-252.58712,0.00018904,2]
[333575418,1722251472748,-151.0,0.00018904,2]
[333575419,1722251472757,-2198.4,0.00018904,2]
[333575420,1722251472767,-660.09,0.00018904,2]
[333575421,1722251472777,-193.62,0.00018904,2]
[333575422,1722251472786,-151.0,0.00018904,2]
[333575423,1722251472796,-500.0,0.00018904,2]
[333575424,1722251472806,-826.2,0.00018904,2]
[333575425,1722251472816,-348.809054,0.00018904,2]
[333575426,1722251472826,-348.809054,0.00018904,2]
[333575427,1722251472836,-500.0,0.00018904,2]
[333575428,1722251472846,-502.53,0.00018904,2]
[333575429,1722251472856,-559.07,0.00018904,2]
[333575430,1722251472866,-506.76,0.00018904,2]
[333575431,1722251472876,-500.0,0.00018904,2]
[333575432,1722251472886,-322.88,0.00018904,2]
[333575433,1722251472895,-2414.85,0.00018904,2]
[333575434,1722251472905,-811.03,0.00018904,2]
[333575435,1722251472916,-3032.91,0.00018904,2]
[333575436,1722251472925,-500.0,0.00018904,2]
[333575437,1722251472935,-5771.94,0.00018904,2]
[333575438,1722251472945,-1093.32,0.00018904,2]
[333575439,1722251472955,-1268.33,0.00018904,2]
[333575440,1722251472966,-264.313534,0.00018959,2]
[333575441,1722251472976,-264.313534,0.00018959,2]
[333575442,1722251472987,-151.0,0.00018959,2]
[333575443,1722251472996,-151.0,0.00018959,2]
[333575444,1722251473006,-248.241666,0.00018959,2]
[333575445,1722251473015,-500.0,0.00018978,2]
[333575446,1722251473026,-865.7,0.00018978,2]
[333575447,1722251473036,-520.83,0.00018978,2]
[333575448,1722251473046,-500.0,0.00018978,2]
[333575449,1722251473056,-250.0,0.00019041,2]
[333575450,1722251473066,-20752.6436984,0.00019101,2]
[333575451,1722251473076,-6999.1698205,0.00019102,2]
[333575452,1722251473086,-1410.0,0.00019109,2]
[333575453,1722251473096,-3086.6528281,0.00019139,2]
[333575454,1722251473106,-1990.82429951,0.00019167,2]
[333575455,1722251473116,-4018.01957075,0.00019167,2]
[333575456,1722251473126,-277.13700097,0.00019167,2]
[333575457,1722251473136,-641.53423,0.00019177,2]
[333575458,1722251473146,-641.53423,0.00019177,2]
[333575459,1722251473156,-958.529847,0.00019177,2]
[333575460,1722251473167,-274.963552,0.00019177,2]
[333575461,1722251473176,-958.529847,0.00019177,2]
[333575462,1722251473186,-2321.155208,0.00019177,2]
[333575463,1722251473196,-2321.155208,0.00019177,2]
[333575464,1722251473206,-3121.593224,0.00019177,2]
[333575465,1722251473216,-3121.593224,0.00019177,2]
[333575466,1722251473227,-2588.274973,0.00019177,2]
[333575467,1722251473237,-198.532173,0.00019177,2]
[333575468,1722251473246,-2588.274973,0.00019177,2]
[333575469,1722251473256,-198.532173,0.00019177,2]
[333575470,1722251473267,-1004.232251,0.00019177,2]
[333575471,1722251473276,-1004.232251,0.00019177,2]
[333575472,1722251473286,-631.6,0.00019178,2]
[333575473,1722251473296,-506.74,0.00019178,2]
[333575474,1722251473306,-159.0,0.00019178,2]
[333575475,1722251473316,-507.23,0.00019178,2]
[333575476,1722251473326,-716.0,0.00019178,2]
[333575477,1722251473335,-2198.4,0.00019178,2]
[333575478,1722251473346,-660.09,0.00019178,2]
[333575479,1722251473356,-182.67478643,0.00019178,2]
[333575480,1722251473366,-826.2,0.00019178,2]
[333575481,1722251473376,-593.65,0.00019178,2]
[333575482,1722251473386,-502.53,0.00019178,2]
[333575483,1722251473395,-559.07,0.00019178,2]
[333575484,1722251473405,-506.76,0.00019178,2]
[333575485,1722251473414,-500.0,0.00019178,2]
[333575486,1722251473423,-500.0,0.00019178,2]
[333575487,1722251473433,-500.0,0.00019178,2]
[333575488,1722251473443,-500.0,0.00019178,2]
[333575489,1722251473454,-500.0,0.00019178,2]
[333575490,1722251473463,-500.0,0.00019178,2]
[333575491,1722251473473,-500.0,0.00019178,2]
[333575492,1722251473483,-500.0,0.00019178,2]
[333575493,1722251473493,-571.43257624,0.00019178,2]
[333575494,1722251473502,-2414.85,0.00019178,2]
[333575495,1722251473514,-811.03,0.00019178,2]
[333575496,1722251473523,-3032.91,0.00019178,2]
[333575497,1722251473533,-506.41915279,0.00019178,2]
[333575498,1722251473543,-5771.94,0.00019178,2]
[333575499,1722251473552,-1093.32,0.00019178,2]
[333575500,1722251473561,-251.217698,0.00019178,2]
[333575501,1722251473571,-1762.71873065,0.00019256,2]
[333575502,1722251473581,-2277.39949897,0.00019256,3]
[333575503,1722251473590,-1172.04350055,0.00019256,2]
[333575504,1722251473599,-500.0,0.0001945,2]
[333575505,1722251473608,-500.0,0.0001945,2]
[333575506,1722251473618,-500.0,0.0001945,2]
[333575507,1722251473628,-524.75234271,0.0001945,2]
[333575508,1722251473638,-865.7,0.0001945,2]
[333575509,1722251473647,-865.7,0.0001945,2]
[333575510,1722251473657,-865.7,0.0001945,2]
[333575511,1722251473666,-865.7,0.0001945,2]
[333575512,1722251473676,-865.80249105,0.0001945,2]
[333575513,1722251473685,-1500.0,0.00019451,2]
[333575514,1722251473696,-1500.0,0.00019451,2]
[333575515,1722251473706,-1437.78611875,0.00019451,2]
[333575516,1722251473715,-296.88487601,0.00019451,2]
[333575517,1722251473724,-2138.42102512,0.00019451,2]
[333575518,1722251473734,-9639.05525324,0.00019451,2]
[333575519,1722251473743,-154.63660398,0.00019451,2]
[333575520,1722251473753,-4336.40755636,0.00019451,2]
[333575521,1722251473762,-506.74,0.00019452,2]
[333575522,1722251473772,-507.23,0.00019452,2]
[333575523,1722251473782,-716.0,0.00019452,2]
[333575524,1722251473791,-2198.4,0.00019452,2]
[333575525,1722251473802,-660.09,0.00019452,2]
[333575526,1722251473812,-826.2,0.00019452,2]
[333575527,1722251473822,-502.53,0.00019452,2]
[333575528,1722251473831,-559.07,0.00019452,2]
[333575529,1722251473841,-506.76,0.00019452,2]
[333575530,1722251473851,-500.0,0.00019452,2]
[333575531,1722251473860,-2414.85,0.00019452,2]
[333575532,1722251473870,-811.03,0.00019452,2]
[333575533,1722251473880,-3032.91,0.00019452,2]
[333575534,1722251473890,-5771.94,0.00019452,2]
[333575535,1722251473899,-1093.32,0.00019452,2]
[333575536,1722251473909,-151.0,0.00019478,2]
[333575537,1722251473980,-152.421719,0.00019478,2]
[333575538,1722251473991,-151.0,0.00019478,2]
[333575539,1722251474002,-151.0,0.00019478,2]
[333575540,1722251474011,-151.0,0.00019478,2]
[333575541,1722251474021,-492.27173157,0.00019547,2]
[333575542,1722251474031,-506.74,0.00019726,2]
[333575543,1722251474040,-507.23,0.00019726,2]
[333575544,1722251474050,-716.0,0.00019726,2]
[333575545,1722251474059,-2198.4,0.00019726,2]
[333575546,1722251474069,-660.09,0.00019726,2]
[333575547,1722251474079,-826.2,0.00019726,2]
[333575548,1722251474089,-502.53,0.00019726,2]
[333575549,1722251474099,-559.07,0.00019726,2]
[333575550,1722251474109,-506.76,0.00019726,2]
[333575551,1722251474119,-252.84,0.00019726,2]
[333575552,1722251474129,-2414.85,0.00019726,2]
[333575553,1722251474138,-811.03,0.00019726,2]
[333575554,1722251474147,-3032.91,0.00019726,2]
[333575555,1722251474157,-5771.94,0.00019726,2]
[333575556,1722251474167,-1093.32,0.00019726,2]
[333575557,1722251474177,-520.83,0.00019809,2]
[333575558,1722251474187,-230.19156202,0.00019809,2]
[333575559,1722251474196,-151.0,0.00019809,2]
[333575560,1722251474207,-348.809054,0.00019809,2]
[333575561,1722251474217,-348.809054,0.00019809,2]
[333575562,1722251474232,-500.0,0.00019809,2]
[333575563,1722251474241,-151.0,0.00019999,2]
[333575564,1722251474251,-151.0,0.00019999,2]
[333575565,1722251474262,-3136.93042,0.00019999,2]
[333575566,1722251474272,-3136.93042,0.00019999,2]
[333575567,1722251474282,-151.0,0.00019999,2]
[333575568,1722251474292,-948.84161495,0.00019999,2]
[333575569,1722251474303,-248.23618916,0.0002,2]
[333575570,1722251474313,-154.63660398,0.0002,2]
[333575571,1722251474323,-506.97927635,0.0002,2]
[333575572,1722251474333,-151.0,0.0002,2]
[333575573,1722251474342,-151.0,0.0002,2]
[333575574,1722251474352,-507.26813751,0.0002,2]
[333575575,1722251474362,-716.1513872,0.0002,2]
[333575576,1722251474372,-2198.51945052,0.0002,2]
[333575577,1722251474382,-660.13,0.0002,2]
[333575578,1722251474392,-307.11244283,0.0002,2]
[333575579,1722251474402,-826.43638501,0.0002,2]
[333575580,1722251474412,-502.6504558,0.0002,2]
[333575581,1722251474422,-1015.30682734,0.0002,2]
[333575582,1722251474431,-559.30838773,0.0002,2]
[333575583,1722251474441,-294.0516063,0.0002,2]
[333575584,1722251474451,-506.94,0.0002,2]
[333575585,1722251474461,-2415.04347859,0.0002,2]
[333575586,1722251474471,-811.20973053,0.0002,2]
[333575587,1722251474481,-3033.0654,0.0002,2]
[333575588,1722251474491,-302.30477158,0.0002,2]
[333575589,1722251474500,-5772.06934939,0.0002,2]
[333575590,1722251474509,-1093.52716593,0.0002,2]
[333575591,1722251474518,-302.30477158,0.000202,2]
[333575592,1722251474528,-150.112233,0.000203,5]
[333575593,1722251474537,-2895.90316603,0.00020333,30]
[333575594,1722251474547,-302.30477158,0.000204,2]
[333575595,1722251474556,-1036.495741,0.00020548,2]
[333575596,1722251474566,-302.30477158,0.000206,2]
[333575597,1722251474575,-300.316224,0.00020707,2]
[333575598,1722251474585,-302.30477158,0.000208,2]
[333575599,1722251474595,-222.07416662,0.00020999,2]
[333575600,1722251474604,-156.30380148,0.00020999,2]
[333575601,1722251474614,-207.0,0.00020999,2]
[333575602,1722251474623,-156.30380148,0.00020999,2]
[333575603,1722251474633,-667.580387,0.00021,2]
[333575604,1722251474643,-1000.0,0.00021,21]
[333575605,1722251474652,-453.45715737,0.00021,4]
[333575606,1722251474661,-151.0,0.00021011,2]
[333575607,1722251474671,-154.63660398,0.00021011,2]
[333575608,1722251474680,-151.0,0.00021048,2]
[333575609,1722251474690,-157.967112,0.00021065,2]
[333575610,1722251474702,-453.45715737,0.000212,4]
[333575611,1722251474711,-453.45715737,0.000214,4]
[333575612,1722251474722,-520.83,0.00021541,2]
[333575613,1722251474732,-326.2312993,0.00021541,2]
[333575614,1722251474741,-264.313534,0.00021542,2]
[333575615,1722251474751,-264.313534,0.00021542,2]
[333575616,1722251474760,-251.759584,0.00021542,2]
[333575617,1722251474770,-3062.45863511,0.00021591,2]
[333575618,1722251474779,-1645.8353511,0.00021591,2]
[333575619,1722251474790,-520.83,0.00021598,2]
[333575620,1722251474799,-641.53423,0.00021598,2]
[333575621,1722251474809,-641.53423,0.00021598,2]
[333575622,1722251474819,-958.529847,0.00021598,2]
[333575623,1722251474829,-958.529847,0.00021598,2]
[333575624,1722251474839,-2321.155208,0.00021598,2]
[333575625,1722251474849,-2321.155208,0.00021598,2]
[333575626,1722251474859,-3121.593224,0.00021598,2]
[333575627,1722251474868,-3121.593224,0.00021598,2]
[333575628,1722251474878,-198.532173,0.00021598,2]
[333575629,1722251474888,-198.532173,0.00021598,2]
[333575630,1722251474898,-156.04710466,0.00021599,2]
[333575631,1722251474908,-216.79398217,0.00021599,2]
[333575632,1722251474917,-4528.20482512,0.00021599,2]
[333575633,1722251474926,-209.76093234,0.00021599,2]
[333575634,1722251474936,-335.41648324,0.00021599,2]
[333575635,1722251474947,-453.45715737,0.000216,4]
[333575636,1722251474957,-268.01677773,0.00021602,2]
[333575637,1722251474967,-268.01677773,0.00021602,2]
[333575638,1722251474977,-165.42397432,0.00021602,2]
[333575639,1722251474987,-994.61074764,0.00021602,2]
[333575640,1722251474996,-520.83,0.00021608,2]
[333575641,1722251475006,-2846.40553147,0.00021609,2]
[333575642,1722251475016,-2588.274973,0.00021609,2]
[333575643,1722251475026,-2588.274973,0.00021609,2]
[333575644,1722251475035,-323.93313452,0.00021609,2]
[333575645,1722251475044,-1004.232251,0.00021609,2]
[333575646,1722251475054,-154.69833824,0.00021609,2]
[333575647,1722251475064,-204.43979736,0.00021609,2]
[333575648,1722251475074,-1004.232251,0.00021609,2]
[333575649,1722251475083,-951.37397172,0.00021632,2]
[333575650,1722251475152,-951.37397172,0.00021632,2]
[333575651,1722251475163,-435.0,0.00021642,2]
[333575652,1722251475173,-155.99033626,0.00021683,2]
[333575653,1722251475183,-155.99033626,0.00021729,2]
[333575654,1722251475194,-453.45715737,0.000218,4]
[333575655,1722251475205,-1406.0,0.00022109,2]
[333575656,1722251475214,-155.99033626,0.00022276,2]
[333575657,1722251475227,-155.99033626,0.000224,2]
[333575658,1722251475237,-150.112233,0.000228,2]
[333575659,1722251475246,-602.0,0.000229,2]
[333575660,1722251475256,-1000.0,0.00023,23]
[333575661,1722251475267,-155.99033631,0.00023295,2]
[333575662,1722251475277,-520.0,0.0002335,2]
[333575663,1722251475286,-151.0,0.00023372,7]
[333575664,1722251475296,-151.0,0.00023372,7]
[333575665,1722251475306,-155.0,0.000236,10]
[333575666,1722251475316,-4341.93675127,0.00024,30]
[333575667,1722251475326,-200.0,0.00024658,15]
[333575668,1722251475335,-152.72,0.000249,31]
[333575669,1722251475350,-152.72,0.000249,31]
[333575670,1722251475359,-152.72,0.000249,31]
[333575671,1722251475368,-152.72,0.000249,31]
[333575672,1722251475377,-152.72,0.000249,31]
[333575673,1722251475387,-152.72,0.000249,31]
[333575674,1722251475397,-152.72,0.000249,31]
[333575675,1722251475406,-152.72,0.000249,31]
[333575676,1722251475416,-152.72,0.000249,31]
[333575677,1722251475425,-152.72,0.000249,31]
[333575678,1722251475440,-152.72,0.000249,31]
[333575679,1722251475456,-152.72,0.000249,31]
[333575680,1722251475466,-152.72,0.000249,31]
[333575681,1722251475476,-152.72,0.000249,31]
[333575682,1722251475486,-152.72,0.000249,31]
[333575683,1722251475500,-152.72,0.000249,31]
[333575684,1722251475510,-520.83,0.00024989,2]
[333575685,1722251475521,-154.63660398,0.00025,2]
[333575686,1722251475531,-23156.16866142,0.00025,30]
[333575687,1722251475541,-6372.30496392,0.00025,2]
[333575688,1722251475551,-1000.0,0.00025,25]
[333575689,1722251475561,-151.0,0.00025,7]
[333575690,1722251475571,-151.0,0.00025,7]
[333575691,1722251475581,-3136.93042,0.00025,7]
[333575692,1722251475591,-3136.93042,0.00025,7]
[333575693,1722251475601,-151.0,0.00025,7]
[333575694,1722251475611,-151.0,0.00025016,7]
[333575695,1722251475622,-348.809054,0.00025016,7]
[333575696,1722251475632,-348.809054,0.00025016,7]
[333575697,1722251475642,-156.0,0.0002506,13]
[333575698,1722251475652,-152.72,0.000253,31]
[333575699,1722251475662,-152.72,0.000253,31]
[333575700,1722251475672,-152.72,0.000253,31]
[333575701,1722251475697,-152.72,0.000253,31]
[333575702,1722251475721,-152.72,0.000253,31]
[333575703,1722251475743,-152.72,0.000253,31]
[333575704,1722251475764,-152.72,0.000253,31]
[333575705,1722251475787,-152.72,0.000253,31]
[333575706,1722251475808,-152.72,0.000253,31]
[333575707,1722251475827,-152.72,0.000253,31]
[333575708,1722251475846,-152.72,0.000253,31]
[333575709,1722251475866,-152.72,0.000253,31]
[333575710,1722251475889,-152.72,0.000253,31]
[333575711,1722251475903,-150.112233,0.000254,9]
[333575712,1722251475922,-152.72,0.000257,31]
[333575713,1722251475939,-152.72,0.000257,31]
[333575714,1722251475957,-152.72,0.000257,31]
[333575715,1722251475973,-152.72,0.000257,31]
[333575716,1722251475992,-152.72,0.000257,31]
[333575717,1722251476010,-152.72,0.000257,31]
[333575718,1722251476028,-152.72,0.000257,31]
[333575719,1722251476044,-152.72,0.000257,31]
[333575720,1722251476060,-152.72,0.000257,31]
[333575721,1722251476076,-152.72,0.000257,31]
[333575722,1722251476090,-152.72,0.000257,31]
[333575723,1722251476106,-152.72,0.000257,31]
[333575724,1722251476122,-152.72,0.000257,31]
[333575725,1722251476136,-152.72,0.000262,31]
[333575726,1722251476151,-152.72,0.000262,31]
[333575727,1722251476165,-152.72,0.000262,31]
[333575728,1722251476175,-152.72,0.000262,31]
[333575729,1722251476185,-152.72,0.000262,31]
[333575730,1722251476195,-152.72,0.000262,31]
[333575731,1722251476204,-152.72,0.000262,31]
[333575732,1722251476214,-152.72,0.000262,31]
[333575733,1722251476228,-152.72,0.000262,31]
[333575734,1722251476238,-152.72,0.000262,31]
[333575735,1722251476248,-152.72,0.000262,31]
[333575736,1722251476258,-152.72,0.000262,31]
[333575737,1722251476269,-152.72,0.000262,31]
[333575738,1722251476278,-205.9981146,0.00026356,2]
[333575739,1722251476288,-153.0,0.00026356,2]
[333575740,1722251476297,-153.0,0.00026356,2]
[333575741,1722251476307,-251.217698,0.00026388,2]
[333575742,1722251476317,-772.16810131,0.00026569,2]
[333575743,1722251476327,-308.1195623,0.00026579,2]
[333575744,1722251476337,-152.72,0.000266,31]
[333575745,1722251476346,-152.72,0.000266,31]
[333575746,1722251476357,-152.72,0.000266,31]
[333575747,1722251476367,-152.72,0.000266,31]
[333575748,1722251476377,-152.72,0.000266,31]
[333575749,1722251476387,-152.72,0.000266,31]
[333575750,1722251476397,-152.72,0.000266,31]
[333575751,1722251476406,-152.72,0.000266,31]
[333575752,1722251476416,-152.72,0.000266,31]
[333575753,1722251476612,-152.72,0.000266,31]
[333575754,1722251476632,-152.72,0.000266,31]
[333575755,1722251476644,-152.72,0.000266,31]
[333575756,1722251476653,-152.72,0.000266,31]
[333575757,1722251476663,-1691.68908035,0.00026639,2]
[333575758,1722251476672,-600.0,0.0002688,2]
[333575759,1722251476682,-1060.0,0.00027,30]
[333575760,1722251476691,-1000.0,0.00027,27]
[333575761,1722251476702,-180.0,0.00027,2]
[333575762,1722251476712,-153.0,0.00027041,2]
[333575763,1722251476722,-318.13572305,0.00027157,2]
[333575764,1722251476732,-605.30217401,0.0002716,2]
[333575765,1722251476742,-300.316224,0.00027167,2]
[333575766,1722251476752,-520.83,0.00027177,2]
[333575767,1722251476762,-520.83,0.00027386,2]
[333575768,1722251476771,-7966.31089195,0.00027387,2]
[333575769,1722251476781,-363.72517928,0.00027387,2]
[333575770,1722251476790,-288.13296248,0.00027387,2]
[333575771,1722251476800,-6889.943266,0.00027387,2]
[333575772,1722251476809,-154.63660398,0.00027387,15]
[333575773,1722251476819,-4180.5464947,0.00027387,2]
[333575774,1722251476829,-823.48181136,0.00027387,2]
[333575775,1722251476838,-154.85182659,0.00027387,2]
[333575776,1722251476849,-155.59070176,0.00027387,2]
[333575777,1722251476859,-151.0,0.00027387,7]
[333575778,1722251476868,-151.0,0.00027387,7]
[333575779,1722251476878,-520.83,0.00027396,2]
[333575780,1722251476887,-520.83,0.00027396,2]
[333575781,1722251476897,-151.0,0.00027396,7]
[333575782,1722251476906,-348.809054,0.00027396,7]
[333575783,1722251476916,-348.809054,0.00027396,7]
[333575784,1722251476925,-264.313534,0.00027397,7]
[333575785,1722251476934,-264.313534,0.00027397,7]
[333575786,1722251476944,-151.0,0.00027397,7]
[333575787,1722251476954,-151.426983,0.00027397,7]
[333575788,1722251476963,-151.0,0.00027397,7]
[333575789,1722251476973,-641.53423,0.00027397,7]
[333575790,1722251476983,-641.53424,0.00027397,7]
[333575791,1722251476993,-958.529847,0.00027397,7]
[333575792,1722251477002,-958.529847,0.00027397,7]
[333575793,1722251477012,-2321.155208,0.00027397,7]
[333575794,1722251477021,-2321.155208,0.00027397,7]
[333575795,1722251477030,-3121.593224,0.00027397,7]
[333575796,1722251477040,-3121.593234,0.00027397,7]
[333575797,1722251477049,-2588.274973,0.00027397,7]
[333575798,1722251477058,-198.532173,0.00027397,7]
[333575799,1722251477068,-2588.274973,0.00027397,7]
[333575800,1722251477078,-198.532177,0.00027397,7]
[333575801,1722251477087,-1004.232251,0.00027397,7]
[333575802,1722251477097,-1004.232247,0.00027397,7]
[333575803,1722251477107,-500.0,0.00027397,2]
[333575804,1722251477116,-500.0,0.00027397,2]
[333575805,1722251477126,-500.0,0.00027397,2]
[333575806,1722251477137,-500.0,0.00027397,2]
[333575807,1722251477146,-500.0,0.00027397,2]
[333575808,1722251477156,-500.0,0.00027397,2]
[333575809,1722251477166,-500.0,0.00027397,2]
[333575810,1722251477175,-500.0,0.00027397,2]
[333575811,1722251477185,-500.0,0.00027397,2]
[333575812,1722251477197,-500.0,0.00027397,2]
[333575813,1722251477206,-500.0,0.00027397,2]
[333575814,1722251477217,-500.0,0.00027397,2]
[333575815,1722251477230,-500.0,0.00027397,2]
[333575816,1722251477239,-500.0,0.00027397,2]
[333575817,1722251477249,-500.0,0.00027397,2]
[333575818,1722251477258,-374.71139462,0.00027397,2]
[333575819,1722251477269,-500.0,0.00027397,2]
[333575820,1722251477278,-6250.0,0.00027397,120]
[333575821,1722251477287,-318.13572305,0.00027566,2]
[333575822,1722251477298,-180.0,0.00027671,2]
[333575823,1722251477308,-150.0,0.00027709,2]
[333575824,1722251477317,-318.13572306,0.00027792,2]
[333575825,1722251477327,-157.967112,0.00027884,2]
[333575826,1722251477337,-500.0,0.00027972,2]
[333575827,1722251477346,-520.83,0.00027989,2]
[333575828,1722251477357,-520.83,0.00027989,2]
[333575829,1722251477367,-520.83,0.00027989,2]
[333575830,1722251477376,-520.83,0.00027989,2]
[333575831,1722251477386,-520.91,0.00027989,2]
[333575832,1722251477395,-1842273.58717138,0.00028,30]